fUST/lending_fUST_20250101
["ID","MTS","AMOUNT","RATE_DAILY","PERIOD"]
[347304967,1735672249350,-500.0,0.0002,3]
[347304968,1735672249360,-500.0,0.0002,3]
[347304969,1735672249369,-500.0,0.0002,3]
[347304970,1735672249381,-169.592575,0.0002,2]
[347304971,1735672249391,-169.592575,0.0002,2]
[347304972,1735672249400,-500.0,0.0002,3]
[347304973,1735672249410,-500.0,0.0002,3]
[347304974,1735672249421,-768.99,0.0002,3]
[347304975,1735672249430,-887.19,0.0002,3]
[347304976,1735672249440,-637.88,0.0002,3]
[347304977,1735672249451,-500.0,0.0002,3]
[347304978,1735672249461,-500.0,0.0002,3]
[347304979,1735672249470,-500.0,0.0002,3]
[347304980,1735672249480,-500.0,0.0002,2]
[347304981,1735672249490,-1513.63,0.0002,3]
[347304982,1735672249499,-500.0,0.0002,3]
[347304983,1735672249508,-673.24,0.0002,3]
[347304984,1735672249518,-500.0,0.0002,3]
[347304985,1735672249527,-500.0,0.0002,3]
[347304986,1735672249536,-754.24,0.0002,3]
[347304987,1735672249546,-500.0,0.0002,3]
[347304988,1735672249555,-500.0,0.0002,3]
[347304989,1735672249564,-500.0,0.0002,3]
[347304990,1735672249574,-500.0,0.0002,3]
[347304991,1735672249583,-516.91,0.0002,3]
[347304992,1735672249593,-5194.95,0.0002,3]
[347304993,1735672249602,-500.0,0.0002,3]
[347304994,1735672249612,-500.0,0.0002,3]
[347304995,1735672249621,-629.27,0.0002,3]
[347304996,1735672249631,-500.0,0.0002,3]
[347304997,1735672249640,-503.17145217,0.0002,3]
[347304998,1735672249649,-651.59,0.0002,3]
[347304999,1735672249659,-500.0,0.0002,3]
[347305000,1735672249668,-575.51,0.0002,3]
[347305001,1735672249677,-500.0,0.0002,3]
[347305002,1735672249687,-296.06035818,0.0002,3]
[347305003,1735672249696,-650.99,0.0002,3]
[347305004,1735672249705,-965.17,0.0002,3]
[347305005,1735672249714,-500.0,0.0002,3]
[347305006,1735672249723,-480.93022324,0.0002,3]
[347305007,1735672249733,-501.55057105,0.0002,3]
[347305008,1735672249742,-504.19019405,0.0002,3]
[347305009,1735672249752,-500.0,0.0002,3]
[347305010,1735672249761,-500.0,0.0002,3]
[347305011,1735672249770,-500.0,0.0002,3]
[347305012,1735672249779,-1142.01,0.0002,3]
[347305013,1735672249789,-500.0,0.0002,3]
[347305014,1735672249798,-788.11,0.0002,3]
[347305015,1735672249807,-504.2176625,0.0002,3]
[347305016,1735672249817,-687.313315,0.0002,2]
[347305017,1735672249910,-687.313315,0.0002,2]
[347305018,1735672249919,-500.0,0.0002,3]
[347305019,1735672249928,-687.313315,0.0002,2]
[347305020,1735672249937,-687.313315,0.0002,2]
[347305021,1735672249948,-569.88788877,0.0002,3]
[347305022,1735672249957,-500.0,0.0002,3]
[347305023,1735672249967,-1119.91,0.0002,3]
[347305024,1735672249976,-500.0,0.0002,3]
[347305025,1735672249985,-500.0,0.0002,3]
[347305026,1735672249994,-758.55,0.0002,3]
[347305027,1735672250003,-495.488641,0.0002,2]
[347305028,1735672250012,-495.488641,0.0002,2]
[347305029,1735672250020,-193.183239,0.0002,2]
[347305030,1735672250029,-495.488641,0.0002,2]
[347305031,1735672250038,-495.488641,0.0002,2]
[347305032,1735672250047,-193.183239,0.0002,2]
[347305033,1735672250057,-151.0,0.0002,2]
[347305034,1735672250066,-2103.98,0.0002,3]
[347305035,1735672250075,-1470.04,0.0002,3]
[347305036,1735672250085,-500.0,0.0002,3]
[347305037,1735672250094,-500.0,0.0002,3]
[347305038,1735672250104,-500.0,0.0002,3]
[347305039,1735672250113,-739.29,0.0002,3]
[347305040,1735672250122,-585.49,0.0002,3]
[347305041,1735672250132,-500.0,0.0002,3]
[347305042,1735672250141,-500.0,0.0002,3]
[347305043,1735672250150,-176.485778,0.0002,2]
[347305044,1735672250159,-500.0,0.0002,3]
[347305045,1735672250168,-176.485778,0.0002,2]
[347305046,1735672250177,-543.12060661,0.0002,3]
[347305047,1735672250187,-507.38,0.0002,3]
[347305048,1735672250197,-500.0,0.0002,3]
[347305049,1735672250207,-605.46,0.0002,3]
[347305050,1735672250222,-886.32,0.0002,3]
[347305051,1735672250232,-500.0,0.0002,3]
[347305052,1735672250243,-500.0,0.0002,3]
[347305053,1735672250252,-752.33,0.0002,3]
[347305054,1735672250261,-500.0,0.0002,3]
[347305055,1735672250270,-500.0,0.0002,3]
[347305056,1735672250280,-731.56,0.0002,3]
[347305057,1735672250289,-850.38,0.0002,3]
[347305058,1735672250300,-500.0,0.0002,3]
[347305059,1735672250309,-500.0,0.0002,3]
[347305060,1735672250318,-164.730858,0.0002,2]
[347305061,1735672250327,-500.0,0.0002,3]
[347305062,1735672250336,-500.0,0.0002,3]
[347305063,1735672250345,-860.84,0.0002,3]
[347305064,1735672250354,-2986.32,0.0002,3]
[347305065,1735672250365,-164.730858,0.0002,2]
[347305066,1735672250375,-1063.93,0.0002,3]
[347305067,1735672250388,-500.0,0.0002,3]
[347305068,1735672250398,-949.03,0.0002,3]
[347305069,1735672250408,-500.0,0.0002,3]
[347305070,1735672250418,-787.97,0.0002,3]
[347305071,1735672250427,-901.69,0.0002,3]
[347305072,1735672250438,-500.0,0.0002,3]
[347305073,1735672250450,-500.0,0.0002,3]
[347305074,1735672250461,-1391.05,0.0002,3]
[347305075,1735672250471,-543.91,0.0002,3]
[347305076,1735672250480,-500.0,0.0002,3]
[347305077,1735672250490,-500.0,0.0002,3]
[347305078,1735672250499,-746.31,0.0002,3]
[347305079,1735672250509,-720.57,0.0002,3]
[347305080,1735672250518,-191.44974,0.0002,2]
[347305081,1735672250528,-191.44974,0.0002,2]
[347305082,1735672250537,-500.0,0.0002,3]
[347305083,1735672250547,-500.0,0.0002,3]
[347305084,1735672250557,-4644.83,0.0002,3]
[347305085,1735672250567,-191.44974,0.0002,2]
[347305086,1735672250576,-191.44974,0.0002,2]
[347305087,1735672250585,-500.0,0.0002,3]
[347305088,1735672250595,-1690.7,0.0002,3]
[347305089,1735672250604,-323.214034,0.0002,2]
[347305090,1735672250614,-323.214034,0.0002,2]
[347305091,1735672250624,-275.501114,0.0002,2]
[347305092,1735672250633,-275.501114,0.0002,2]
[347305093,1735672250643,-705.22,0.0002,3]
[347305094,1735672250652,-323.214034,0.0002,2]
[347305095,1735672250661,-323.214034,0.0002,2]
[347305096,1735672250671,-500.0,0.0002,3]
[347305097,1735672250681,-275.501114,0.0002,2]
[347305098,1735672250702,-275.501114,0.0002,2]
[347305099,1735672250720,-8763.17,0.0002,3]
[347305100,1735672250735,-1793.86,0.0002,3]
[347305101,1735672250752,-500.84,0.0002,3]
[347305102,1735672250769,-876.93,0.0002,3]
[347305103,1735672250786,-500.0,0.0002,3]
[347305104,1735672250803,-1447.74,0.0002,3]
[347305105,1735672250820,-500.0,0.0002,3]
[347305106,1735672250836,-37655.17,0.0002,3]
[347305107,1735672250849,-835.37,0.0002,3]
[347305108,1735672250864,-743.06,0.0002,3]
[347305109,1735672250879,-500.0,0.0002,3]
[347305110,1735672250891,-500.0,0.0002,3]
[347305111,1735672250904,-500.0,0.0002,3]
[347305112,1735672250917,-994.06,0.0002,3]
[347305113,1735672250933,-1293.84,0.0002,3]
[347305114,1735672250949,-1168.78,0.0002,3]
[347305115,1735672250966,-340.834427,0.0002,2]
[347305116,1735672250981,-340.834427,0.0002,2]
[347305117,1735672250993,-826.4,0.0002,3]
[347305118,1735672251004,-500.0,0.0002,3]
[347305119,1735672251018,-340.834427,0.0002,2]
[347305120,1735672251034,-340.834427,0.0002,2]
[347305121,1735672251045,-913.46,0.0002,3]
[347305122,1735672251058,-500.0,0.0002,3]
[347305123,1735672251071,-1228.09,0.0002,3]
[347305124,1735672251082,-500.0,0.0002,3]
[347305125,1735672251095,-500.0,0.0002,3]
[347305126,1735672251108,-884.66,0.0002,3]
[347305127,1735672251122,-500.0,0.0002,3]
[347305128,1735672251135,-500.0,0.0002,3]
[347305129,1735672251148,-500.0,0.0002,3]
[347305130,1735672251162,-1008.09,0.0002,3]
[347305131,1735672251175,-257.34379423,0.0002,3]
[347305132,1735672251187,-500.0,0.0002,3]
[347305133,1735672251201,-500.0,0.0002,3]
[347305134,1735672251213,-3119.29,0.0002,3]
[347305135,1735672251225,-1178.11,0.0002,3]
[347305136,1735672251236,-500.0,0.0002,3]
[347305137,1735672251249,-8493.3,0.0002,3]
[347305138,1735672251262,-1671.35,0.0002,3]
[347305139,1735672251275,-1510.14,0.0002,3]
[347305140,1735672251287,-500.0,0.0002,3]
[347305141,1735672251299,-389.805421,0.0002,2]
[347305142,1735672251313,-3953.81,0.0002,3]
[347305143,1735672251325,-389.805421,0.0002,2]
[347305144,1735672251339,-2019.8,0.0002,3]
[347305145,1735672251351,-389.805421,0.0002,2]
[347305146,1735672251364,-389.805421,0.0002,2]
[347305147,1735672251377,-876.52,0.0002,3]
[347305148,1735672251392,-500.0,0.0002,3]
[347305149,1735672251406,-500.0,0.0002,3]
[347305150,1735672251420,-502.02,0.0002,3]
[347305151,1735672251433,-500.0,0.0002,3]
[347305152,1735672251447,-500.21,0.0002,3]
[347305153,1735672251460,-150.0,0.00020097,2]
[347305154,1735672251473,-150.0,0.00020097,2]
[347305155,1735672251486,-534.0,0.00020097,2]
[347305156,1735672251499,-2093.0,0.00020097,2]
[347305157,1735672251512,-2348.0,0.00020097,2]
[347305158,1735672251525,-5000.0,0.00020111,2]
[347305159,1735672251537,-5000.0,0.00020142,2]
[347305160,1735672251550,-408.04932626,0.00020147,2]
[347305161,1735672251563,-4190.03993336,0.00020173,2]
[347305162,1735672251575,-618.0,0.000202,2]
[347305163,1735672251588,-182.71,0.00020262,2]
[347305164,1735672251600,-256.26012868,0.00020262,2]
[347305165,1735672251613,-440.0,0.0002027,2]
[347305166,1735672251625,-151.0,0.00020273,2]
[347305167,1735672251637,-151.0,0.00020273,2]
[347305168,1735672251649,-442.76203509,0.00020273,3]
[347305169,1735672251661,-151.0,0.00020273,2]
[347305170,1735672251674,-652.915981,0.00020273,2]
[347305171,1735672251686,-652.915981,0.00020273,2]
[347305172,1735672251696,-500.0,0.00020273,3]
[347305173,1735672251705,-463.83705676,0.00020273,3]
[347305174,1735672252328,-302.60665372,0.00019,2]
[347305175,1735672252339,-74.65634624,0.0001919,2]
[347305176,1735672252350,-227.95030748,0.0001919,2]
[347305177,1735672252360,-75.32719232,0.0001938,2]
[347305178,1735672252496,-227.2794614,0.0001938,2]
[347305179,1735672252506,-272.7205386,0.0001957,2]
[347305181,1735672352814,400.0,0.00013973,2]
[347305188,1735673230438,400.0,0.00013973,2]
[347305196,1735673316256,765.79895957,0.0002,120]
[347305215,1735673432564,-2661.5133462,0.00017915,2]
[347305216,1735673432573,-454.391061,0.00017996,2]
[347305217,1735673432583,-200.0,0.00018,2]
[347305218,1735673432592,-90.09559279,0.00018,2]
[347305219,1735673432604,-4811.85580207,0.00018,2]
[347305220,1735673432613,-300.0,0.00018027,2]
[347305221,1735673432623,-2239.24945923,0.00018028,2]
[347305222,1735673432634,-21403.903411,0.00018028,2]
[347305223,1735673432644,-493.65,0.00018028,2]
[347305224,1735673432659,-763.19712977,0.00018028,2]
[347305225,1735673432668,-161.3218,0.00018108,2]
[347305226,1735673432678,-161.3218,0.00018199,2]
[347305227,1735673432687,-1444.36877023,0.00018721,2]
[347305228,1735673432699,-397.79952424,0.00018721,2]
[347305229,1735673432714,-635.79707351,0.00018721,2]
[347305257,1735673438692,-2522.03463202,0.00018721,2]
[347305258,1735673438705,-5164.75756255,0.00018933,2]
[347305259,1735673438716,-251.93626997,0.00019078,2]
[347305260,1735673438726,-251.93626995,0.00019147,2]
[347305261,1735673438735,-151.0,0.00019166,2]
[347305262,1735673438746,-166.1,0.00019166,2]
[347305263,1735673438756,-500.0,0.00019173,2]
[347305264,1735673438765,-500.0,0.00019173,2]
[347305265,1735673438775,-630.16141566,0.00019176,2]
[347305266,1735673438786,-491.02,0.00019177,2]
[347305267,1735673438795,-495.782,0.00019177,2]
[347305268,1735673438804,-618631.80582519,0.00019177,4]
[347305332,1735673457334,1165.492,0.00025,120]
[347305351,1735674380564,1253.0,0.00022546,60]
[347305352,1735674399086,1256.63755643,0.00022546,62]
[347305354,1735674457712,400.0,0.00013973,2]
[347305365,1735674632705,-196.2664726,0.00016661,2]
[347305366,1735674632715,-183.72660861,0.00016829,2]
[347305370,1735674632822,-191.65986399,0.00016829,2]
[347305372,1735674632833,-500.0,0.00018027,2]
[347305374,1735674632842,-227.195531,0.0001816,2]
[347305376,1735674632851,-300.0,0.00018173,2]
[347305378,1735674632861,-24900.0,0.00018174,2]
[347305380,1735674632871,-500.0,0.00018849,4]
[347305382,1735674632881,-387.64686008,0.00019077,2]
[347305384,1735674632891,-1037.32228146,0.00019078,2]
[347305386,1735674632901,-151.0,0.00019166,2]
[347305388,1735674632911,-500.0,0.00019173,2]
[347305390,1735674632920,-432.129,0.00019176,2]
[347305392,1735674632930,-150.0,0.00019177,2]
[347305394,1735674632940,-54.95317884,0.00019177,4]
[347305418,1735674638709,-4187.63664359,0.00019177,4]
[347305419,1735674638720,-329.62620903,0.00019177,4]
[347305420,1735674638731,-304.34503215,0.00019177,4]
[347305421,1735674638743,-1446.3066355,0.00019177,4]
[347305431,1735674640662,-6952.89,0.00019177,4]
[347305446,1735674643776,-361.95984905,0.00019177,4]
[347305447,1735674643873,-1571.55613673,0.00019177,4]
[347305448,1735674643885,-4350.07039355,0.00019177,4]
[347305461,1735674646775,-1165.492,0.00019177,4]
[347305477,1735675336070,400.0,0.00013973,2]
[347305488,1735675699342,-1220.4315921,0.00017811,2]
[347305495,1735675831737,-562.33225432,0.00017896,2]
[347305496,1735675831747,-300.0,0.00018076,2]
[347305497,1735675831756,-18580.39354329,0.00018077,2]
[347305498,1735675831889,-6319.60645671,0.00018077,2]
[347305500,1735675831899,-491.02,0.00018173,2]
[347305502,1735675831908,-227.195531,0.00018174,2]
[347305504,1735675831917,-5164.75756255,0.00018681,2]
[347305506,1735675831927,-368.264517,0.00019077,2]
[347305508,1735675831937,-891.41279913,0.00019078,2]
[347305510,1735675831947,-246.09166629,0.00019166,2]
[347305512,1735675831959,-500.0,0.00019173,2]
[347305514,1735675831969,-500.0,0.00019173,2]
[347305516,1735675831987,-509.69685627,0.00019173,2]
[347305518,1735675832006,-381.207,0.00019173,2]
[347305520,1735675832027,-8964.72149277,0.00019177,2]
[347305522,1735675832040,-2264.69593787,0.00019177,2]
[347305546,1735675837566,-1104.10120722,0.00019177,2]
[347305547,1735675837578,-5000.0,0.00019177,2]
[347305548,1735675837750,-316.3148958,0.00019177,2]
[347305549,1735675837762,-26928.94333506,0.00019177,2]
[347305550,1735675837774,-6295.74867146,0.00019177,2]
[347305551,1735675837785,-1649.302789,0.00019177,2]
[347305552,1735675837800,-4298.4,0.00019177,2]
[347305555,1735675839660,-3305.84805776,0.00019177,2]
[347305556,1735675839712,-1381.38795626,0.00019177,2]
[347305557,1735675839723,-9917.58793697,0.00019177,2]
[347305560,1735675842677,-750.648911,0.00019177,2]
[347305561,1735675842688,-815.44877714,0.00019177,2]
[347305577,1735675845790,-371.35201545,0.00019177,2]
[347305586,1735676345008,400.0,0.00013973,2]
[347305593,1735676726384,1421.0,0.00025,120]
[347305714,1735677012724,13900.0,0.00015,2]
[347305731,1735677031987,-835.13004798,0.00018,2]
[347305732,1735677031997,-300.0,0.00018018,2]
[347305733,1735677032007,-24900.0,0.00018019,2]
[347305734,1735677032016,-797.546,0.0001822,2]
[347305735,1735677032026,-304.966,0.000189,2]
[347305736,1735677032035,-234.4926256,0.000189,2]
[347305737,1735677032045,-713.13023932,0.000189,2]
[347305738,1735677032054,-1182.3000937,0.00018985,2]
[347305739,1735677032065,-4564.53790757,0.00019,2]
[347305740,1735677032080,-1489.40893522,0.00019,2]
[347305741,1735677032090,-4541.41335556,0.00019,2]
[347305775,1735677037840,-63050.19097848,0.00019,2]
[347305776,1735677037850,-110549.09820933,0.00019,2]
[347305777,1735677037860,-349.85129115,0.00019,2]
[347305778,1735677037869,-713.13023929,0.00019082,2]
[347305779,1735677037878,-349.85129109,0.00019087,2]
[347305780,1735677037887,-704.9107508,0.000191,2]
[347305781,1735677037896,-5164.75756255,0.00019116,2]
[347305782,1735677037908,-500.0,0.00019173,2]
[347305783,1735677037917,-209.74908681,0.00019176,2]
[347305784,1735677037928,-189946.17809637,0.00019177,4]
[347305785,1735677037937,-151.0,0.00019178,2]
[347305786,1735677037946,-151.0,0.00019178,2]
[347305787,1735677037954,-151.299747,0.00019178,2]
[347305788,1735677037963,-151.0,0.00019178,2]
[347305789,1735677037972,-151.0,0.00019178,2]
[347305790,1735677037982,-175.93429696,0.00019178,2]
[347305791,1735677037990,-340.834427,0.00019178,2]
[347305792,1735677037999,-340.834427,0.00019178,2]
[347305793,1735677038008,-500.0,0.00019178,2]
[347305794,1735677038017,-153.159792,0.00019178,2]
[347305795,1735677038027,-153.159792,0.00019178,2]
[347305796,1735677038036,-151.0,0.00019178,2]
[347305797,1735677038045,-151.0,0.00019178,2]
[347305798,1735677038054,-151.0,0.00019178,2]
[347305799,1735677038064,-505.31059276,0.00019178,2]
[347305800,1735677038073,-151.0,0.00019178,2]
[347305801,1735677038082,-151.0,0.00019178,2]
[347305802,1735677038092,-151.0,0.00019178,2]
[347305803,1735677038101,-168.228658,0.00019178,2]
[347305804,1735677038111,-505.26530612,0.00019178,2]
[347305805,1735677038120,-505.95060473,0.00019178,2]
[347305806,1735677038129,-500.0,0.00019178,2]
[347305807,1735677038139,-501.60871758,0.00019178,2]
[347305808,1735677038147,-500.0,0.00019178,2]
[347305809,1735677038156,-500.0,0.00019178,2]
[347305810,1735677038165,-500.86099914,0.00019178,2]
[347305811,1735677038176,-500.0,0.00019178,2]
[347305812,1735677038184,-502.63693995,0.00019178,2]
[347305814,1735677038194,-640.84134407,0.00019178,2]
[347305816,1735677038203,-500.0,0.00019178,2]
[347305817,1735677038213,-500.0,0.00019178,2]
[347305819,1735677038223,-500.0,0.00019178,2]
[347305820,1735677038232,-500.0,0.00019178,2]
[347305821,1735677038240,-500.0,0.00019178,2]
[347305823,1735677038250,-503.83985086,0.00019178,2]
[347305824,1735677038260,-500.0,0.00019178,2]
[347305825,1735677038269,-500.0,0.00019178,2]
[347305826,1735677038278,-500.0,0.00019178,2]
[347305827,1735677038288,-509.87657925,0.00019178,2]
[347305828,1735677038297,-500.0,0.00019178,2]
[347305829,1735677038306,-500.0,0.00019178,2]
[347305830,1735677038315,-500.0,0.00019178,2]
[347305831,1735677038325,-503.10648188,0.00019178,2]
[347305832,1735677038334,-623.88,0.00019178,2]
[347305833,1735677038343,-500.0,0.00019178,2]
[347305834,1735677038352,-500.0,0.00019178,2]
[347305835,1735677038362,-652.915981,0.00019178,2]
[347305836,1735677038371,-652.915981,0.00019178,2]
[347305837,1735677038380,-652.915981,0.00019178,2]
[347305838,1735677038389,-652.915981,0.00019178,2]
[347305839,1735677038399,-652.915981,0.00019178,2]
[347305840,1735677038408,-652.915981,0.00019178,2]
[347305841,1735677038417,-504.24253105,0.00019178,2]
[347305842,1735677038426,-652.915981,0.00019178,2]
[347305843,1735677038435,-652.915981,0.00019178,2]
[347305844,1735677038446,-652.915981,0.00019178,2]
[347305845,1735677038455,-652.915981,0.00019178,2]
[347305846,1735677038464,-652.915981,0.00019178,2]
[347305847,1735677038473,-652.915981,0.00019178,2]
[347305848,1735677038483,-500.0,0.00019178,2]
[347305849,1735677038492,-151.0,0.00019178,2]
[347305850,1735677038501,-151.0,0.00019178,2]
[347305851,1735677038510,-151.0,0.00019178,2]
[347305852,1735677038519,-500.0,0.00019178,2]
[347305853,1735677038528,-151.0,0.00019178,2]
[347305854,1735677038538,-151.0,0.00019178,2]
[347305855,1735677038547,-151.0,0.00019178,2]
[347305856,1735677038557,-500.0,0.00019178,2]
[347305857,1735677038566,-500.0,0.00019178,2]
[347305858,1735677038575,-151.0,0.00019178,2]
[347305859,1735677038584,-500.0,0.00019178,2]
[347305860,1735677038593,-151.0,0.00019178,2]
[347305861,1735677038602,-325.951123,0.00019178,2]
[347305862,1735677038611,-325.951123,0.00019178,2]
[347305863,1735677038621,-325.951123,0.00019178,2]
[347305864,1735677038631,-325.951123,0.00019178,2]
[347305865,1735677038640,-325.951123,0.00019178,2]
[347305866,1735677038649,-325.951123,0.00019178,2]
[347305867,1735677038659,-325.951123,0.00019178,2]
[347305868,1735677038668,-325.951123,0.00019178,2]
[347305869,1735677038677,-325.951123,0.00019178,2]
[347305870,1735677038686,-325.951123,0.00019178,2]
[347305871,1735677038698,-500.0,0.00019178,2]
[347305872,1735677038707,-389.805421,0.00019178,2]
[347305873,1735677038716,-389.805421,0.00019178,2]
[347305874,1735677038724,-389.805421,0.00019178,2]
[347305875,1735677038733,-389.805421,0.00019178,2]
[347305876,1735677038742,-389.805421,0.00019178,2]
[347305877,1735677038751,-389.805421,0.00019178,2]
[347305878,1735677038760,-8730.31,0.00019178,2]
[347305879,1735677038770,-389.805421,0.00019178,2]
[347305880,1735677038779,-389.805421,0.00019178,2]
[347305881,1735677038788,-389.805421,0.00019178,2]
[347305882,1735677038797,-389.805421,0.00019178,2]
[347305883,1735677038806,-389.805421,0.00019178,2]
[347305884,1735677038815,-389.805421,0.00019178,2]
[347305885,1735677038829,-500.0,0.00019178,2]
[347305886,1735677038838,-491.19792382,0.00019178,2]
[347305887,1735677038848,-500.0,0.00019178,2]
[347305888,1735677038857,-500.0,0.00019178,2]
[347305889,1735677038867,-151.0,0.00019178,2]
[347305890,1735677038876,-151.0,0.00019178,2]
[347305891,1735677038885,-313.136126,0.00019178,2]
[347305892,1735677038894,-313.136126,0.00019178,2]
[347305893,1735677038905,-313.136126,0.00019178,2]
[347305894,1735677038915,-313.136126,0.00019178,2]
[347305895,1735677038924,-313.136126,0.00019178,2]
[347305896,1735677038933,-151.0,0.00019178,2]
[347305897,1735677038943,-500.0,0.00019178,2]
[347305898,1735677038952,-500.0,0.00019178,2]
[347305899,1735677038961,-500.0,0.00019178,2]
[347305900,1735677038970,-561.1,0.00019178,2]
[347305901,1735677038979,-504.92032518,0.00019178,2]
[347305902,1735677038989,-601.6277443,0.00019178,2]
[347305903,1735677038998,-151.0,0.00019178,2]
[347305904,1735677039007,-151.0,0.00019178,2]
[347305905,1735677039016,-500.0,0.00019178,2]
[347305906,1735677039026,-500.0,0.00019178,2]
[347305907,1735677039036,-624.44,0.00019178,2]
[347305908,1735677039045,-500.0,0.00019178,2]
[347305909,1735677039054,-500.0,0.00019178,2]
[347305910,1735677039064,-500.0,0.00019178,2]
[347305911,1735677039073,-500.0,0.00019178,2]
[347305912,1735677039082,-500.0,0.00019178,2]
[347305913,1735677039091,-500.0,0.00019178,2]
[347305914,1735677039100,-500.0,0.00019178,2]
[347305915,1735677039109,-500.0,0.00019178,2]
[347305916,1735677039118,-500.0,0.00019178,2]
[347305917,1735677039127,-500.0,0.00019178,2]
[347305918,1735677039137,-1671.35,0.00019178,2]
[347305919,1735677039146,-227.48740892,0.00019178,2]
[347305920,1735677039156,-500.0,0.00019178,2]
[347305921,1735677039165,-500.0,0.00019178,2]
[347305922,1735677039174,-500.0,0.00019178,2]
[347305923,1735677039183,-487.2939958,0.00019178,2]
[347305924,1735677039194,-500.0,0.00019178,2]
[347305925,1735677039203,-500.0,0.00019178,2]
[347305926,1735677039212,-500.0,0.00019178,2]
[347305932,1735677039346,-161.91519776,0.00019178,2]
[347305933,1735677039357,-504.84278697,0.00019178,2]
[347305934,1735677039366,-151.0,0.00019178,2]
[347305935,1735677039376,-500.0,0.00019178,2]
[347305936,1735677039385,-151.0,0.00019178,2]
[347305937,1735677039394,-151.0,0.00019178,2]
[347305938,1735677039404,-151.0,0.00019178,2]
[347305939,1735677039414,-151.0,0.00019178,2]
[347305940,1735677039423,-151.0,0.00019178,2]
[347305942,1735677039433,-500.0,0.00019178,2]
[347305944,1735677039442,-500.0,0.00019178,2]
[347305945,1735677039451,-500.0,0.00019178,2]
[347305946,1735677039461,-850.23,0.00019178,2]
[347305947,1735677039471,-757.79,0.00019178,2]
[347305948,1735677039480,-500.0,0.00019178,2]
[347305950,1735677039490,-151.0,0.00019178,2]
[347305952,1735677039499,-151.0,0.00019178,2]
[347305953,1735677039508,-151.0,0.00019178,2]
[347305954,1735677039517,-500.0,0.00019178,2]
[347305955,1735677039526,-500.0,0.00019178,2]
[347305956,1735677039535,-151.0,0.00019178,2]
[347305958,1735677039544,-151.0,0.00019178,2]
[347305959,1735677039554,-500.0,0.00019178,2]
[347305961,1735677039563,-151.0,0.00019178,2]
[347305963,1735677039572,-151.0,0.00019178,2]
[347305965,1735677039582,-500.0,0.00019178,2]
[347305967,1735677039591,-151.0,0.00019178,2]
[347305968,1735677039600,-500.0,0.00019178,2]
[347305970,1735677039610,-253.781084,0.00019178,2]
[347305971,1735677039619,-595.35,0.00019178,2]
[347305972,1735677039628,-500.0,0.00019178,2]
[347305973,1735677039637,-500.0,0.00019178,2]
[347305975,1735677039646,-599.81231256,0.00019178,2]
[347305977,1735677039655,-681.59,0.00019178,2]
[347305979,1735677039665,-500.0,0.00019178,2]
[347305981,1735677039675,-458.63960152,0.00019178,2]